bitfinex-derivatives/quotes_BTCF0:USTF0_20240913
["timestamp","ask_amount","ask_price","bid_price","bid_amount"]
[1726236731861,0.085734,58317.0,58316.0,0.3608]
[1726236732756,0.085728,58321.0,58316.0,0.3608]
[1726236733067,0.08573,58320.0,58317.0,0.085733]
[1726236733254,0.82935314,58329.0,58318.0,0.085731]
[1726236733255,0.08572,58326.0,58318.0,0.085731]
[1726236733460,0.04968385,58325.0,58319.0,0.085729]
[1726236733754,0.085729,58321.0,58320.0,0.085729]
[1726236734260,0.088729,58321.0,58320.0,0.085729]
[1726236734760,0.085724,58324.0,58322.0,0.085726]
[1726236734962,0.085725,58323.0,58322.0,0.085726]
[1726236735165,0.085729,58321.0,58320.0,0.085728]
[1726236735467,0.085729,58320.0,58319.0,0.3608]
[1726236736261,0.171458,58320.0,58319.0,0.3608]
[1726236736660,0.085729,58320.0,58319.0,0.3608]
[1726236737055,0.091729,58320.0,58319.0,0.3608]
[1726236738051,0.091729,58320.0,58319.0,0.446531]
[1726236738255,0.091729,58320.0,58319.0,0.3608]
[1726236742168,0.006,58320.0,58319.0,0.446531]
[1726236742572,0.091729,58320.0,58319.0,0.446531]
[1726236744067,0.447458,58320.0,58319.0,0.3608]
[1726236744265,0.447458,58320.0,58314.0,0.3608]
[1726236744266,0.171472,58315.0,58314.0,0.3608]
[1726236744468,0.085736,58315.0,58314.0,0.3608]
[1726236744967,0.085736,58315.0,58314.0,0.446538]
[1726236745858,0.085736,58315.0,58314.0,0.3608]
[1726236746662,0.086736,58315.0,58314.0,0.446538]
[1726236747472,0.086736,58315.0,58303.0,0.41096443]
[1726236747473,1.471176,58315.0,58309.0,0.3608]
[1726236747765,0.27,58307.0,58297.0,0.085762]
[1726236747968,0.085758,58301.0,58295.0,0.085765]
[1726236748465,0.085758,58301.0,58296.0,0.085763]
[1726236748769,0.20545883,58309.0,58299.0,0.08576]
[1726236748770,0.11971283,58309.0,58299.0,0.08576]
[1726236748976,0.085757,58302.0,58295.0,0.085764]
[1726236749274,0.085754,58304.0,58296.0,0.085764]
[1726236749574,0.085755,58303.0,58296.0,0.085764]
[1726236749770,0.085759,58300.0,58291.0,0.3608]
[1726236750072,0.3608,58293.0,58285.0,0.43324]
[1726236750263,0.084779,58286.0,58285.0,0.4322]
[1726236750570,0.084779,58286.0,58277.0,0.3608]
[1726236750571,0.08579,58279.0,58277.0,0.3608]
[1726236750775,0.085784,58283.0,58277.0,0.3608]
[1726236751370,0.27,58282.0,58273.0,0.3618]
[1726236751574,0.27,58282.0,58273.0,0.3608]
[1726236751575,0.3608,58281.0,58273.0,0.3608]
[1726236751764,0.085789,58280.0,58267.0,0.085806]
[1726236752071,0.27,58278.0,58265.0,0.0709]
[1726236752275,0.085808,58267.0,58263.0,0.36176]
[1726236752462,0.085808,58267.0,58263.0,0.3608]
[1726236752772,0.01177316,58273.0,58264.0,0.27]
[1726236752970,0.3608,58282.0,58271.0,0.27]
[1726236753174,0.3608,58282.0,58275.0,0.6308]
[1726236753376,0.3608,58282.0,58277.0,0.085792]
[1726236753970,0.446585,58282.0,58275.0,0.3608]
[1726236754664,0.3608,58288.0,58277.0,0.085792]
[1726236754979,0.085769,58293.0,58287.0,0.446576]
[1726236755168,0.085769,58293.0,58287.0,0.3608]
[1726236755369,0.085771,58292.0,58287.0,0.446577]
[1726236755666,0.085775,58290.0,58282.0,0.085784]
[1726236755867,0.085775,58290.0,58283.0,0.085783]
[1726236756084,0.085775,58289.0,58283.0,0.085783]
[1726236756569,0.085775,58289.0,58280.0,0.3608]
[1726236756870,0.085775,58289.0,58284.0,0.085782]
[1726236757479,0.085775,58289.0,58285.0,0.085779]
[1726236757667,0.085769,58293.0,58280.0,0.3608]
[1726236757872,0.08577,58292.0,58280.0,0.3608]
[1726236758067,0.008,58289.0,58286.0,0.085778]
[1726236758273,0.008,58289.0,58283.0,0.085783]
[1726236758673,0.08578,58286.0,58284.0,0.085782]
[1726236759070,0.08578,58286.0,58280.0,0.3608]
[1726236759270,0.008,58289.0,58287.0,0.085778]
[1726236759476,0.008,58289.0,58285.0,0.3608]
[1726236759477,0.008,58289.0,58288.0,0.085776]
[1726236759871,0.09077,58293.0,58285.0,0.3608]
[1726236760279,0.08577,58292.0,58285.0,0.3608]
[1726236760485,0.006,58289.0,58285.0,0.3608]
[1726236760784,0.006,58289.0,58288.0,0.085776]
[1726236761172,0.08577,58293.0,58290.0,0.085772]
[1726236761580,0.08577,58293.0,58285.0,0.3608]
[1726236761581,0.08577,58293.0,58291.0,0.085771]
[1726236761780,0.085778,58288.0,58287.0,0.085777]
[1726236761986,0.00339,58296.0,58285.0,0.3608]
[1726236762281,0.085779,58286.0,58285.0,0.3608]
[1726236763081,0.089775,58289.0,58285.0,0.3608]
[1726236763287,0.085779,58286.0,58285.0,0.44658]
[1726236763598,0.085774,58290.0,58289.0,0.085774]
[1726236763972,0.3608,58292.0,58291.0,0.085772]
[1726236764178,0.00339,58296.0,58295.0,0.085766]
[1726236764373,0.089154,58296.0,58295.0,0.085766]
[1726236767088,0.449954,58296.0,58295.0,0.085766]
[1726236767292,0.103154,58296.0,58295.0,0.085766]
[1726236767588,0.01739,58296.0,58295.0,0.085766]
[1726236767989,0.01739,58296.0,58295.0,0.446566]
[1726236768284,0.01739,58296.0,58295.0,0.716566]
[1726236768787,0.01739,58296.0,58295.0,1.916932]
[1726236769384,0.01739,58296.0,58295.0,1.831166]
[1726236769592,0.01739,58296.0,58295.0,1.916932]
[1726236770182,0.01739,58296.0,58295.0,1.831166]
[1726236770576,0.00339,58296.0,58295.0,1.833166]
[1726236771177,0.00279792,58296.0,58295.0,1.918932]
[1726236771784,0.00279792,58296.0,58295.0,1.917932]
[1726236771988,0.00279792,58296.0,58295.0,2.003698]
[1726236772993,0.00279792,58296.0,58295.0,1.403698]
[1726236773188,0.00279792,58296.0,58295.0,2.003698]
[1726236774079,0.00279792,58296.0,58295.0,2.004698]
[1726236774980,0.085739,58314.0,58312.0,0.08574]
[1726236775182,0.085739,58314.0,58300.0,0.085758]
[1726236775183,0.085739,58314.0,58313.0,0.3608]
[1726236775789,0.085748,58307.0,58306.0,0.3608]
[1726236775990,0.27,58311.0,58300.0,0.3608]
[1726236776179,0.085757,58301.0,58300.0,0.446559]
[1726236776591,0.085757,58301.0,58300.0,0.085759]
[1726236776791,0.085757,58301.0,58300.0,0.446559]
[1726236776992,0.085757,58301.0,58300.0,0.085759]
[1726236777792,0.085757,58301.0,58300.0,0.446559]
[1726236778385,0.089757,58301.0,58300.0,0.446559]
[1726236779194,0.089757,58301.0,58300.0,0.3608]
[1726236779388,0.175514,58301.0,58300.0,0.3608]
[1726236779981,0.089757,58301.0,58294.0,0.085767]
[1726236780186,0.085773,58290.0,58289.0,0.36184]
[1726236780388,0.085773,58290.0,58289.0,0.446575]
[1726236780583,0.085778,58287.0,58286.0,0.085778]
[1726236780796,0.6308,58292.0,58283.0,0.3608]
[1726236780797,0.085782,58284.0,58283.0,0.3608]
[1726236780995,0.085782,58284.0,58272.0,0.27]
[1726236780996,0.27,58288.0,58279.0,0.085789]
[1726236781302,0.27,58288.0,58274.0,0.3608]
[1726236781483,0.27,58288.0,58278.0,0.08579]
[1726236781686,0.085789,58279.0,58274.0,0.3608]
[1726236781991,0.085789,58279.0,58277.0,0.085791]
[1726236782789,0.271,58288.0,58274.0,0.37675313]
[1726236782790,0.085795,58275.0,58274.0,0.3648]
[1726236783885,0.085795,58275.0,58274.0,0.004]
[1726236784107,0.085797,58274.0,58250.0,0.3654]
[1726236784289,0.085797,58274.0,58252.0,0.085829]
[1726236784290,0.08582,58259.0,58252.0,0.085829]
[1726236784491,0.3608,58254.0,58242.0,0.43022]
[1726236784691,0.3608,58244.0,58240.0,0.05016443]
[1726236784897,0.3608,58244.0,58233.0,0.004]
[1726236784898,0.085856,58234.0,58233.0,0.004]
[1726236785100,0.9608,58234.0,58214.0,0.004]
[1726236785289,0.9608,58234.0,58209.0,0.43228591]
[1726236785290,0.27,58215.0,58209.0,0.3608]
[1726236785492,0.3608,58226.0,58209.0,0.3608]
[1726236785493,0.27,58225.0,58209.0,0.6308]
[1726236785690,0.085872,58223.0,58214.0,0.27]
[1726236785896,0.085869,58225.0,58214.0,0.27]
[1726236786110,0.0086,58232.0,58206.0,0.004]
[1726236786111,0.3608,58215.0,58206.0,0.004]
[1726236786304,0.3608,58207.0,58196.0,0.3608]
[1726236786492,0.27,58203.0,58196.0,0.3608]
[1726236786691,0.085902,58203.0,58201.0,0.3608]
[1726236786890,0.27,58212.0,58201.0,0.3608]
[1726236787098,0.446698,58206.0,58201.0,0.3608]
[1726236787312,0.446698,58206.0,58190.0,0.3608]
[1726236787313,0.085906,58201.0,58190.0,0.3608]
[1726236787599,0.085906,58201.0,58191.0,0.27]
[1726236788005,0.446706,58201.0,58191.0,0.27]
[1726236788202,0.446706,58201.0,58187.0,0.3608]
[1726236788506,0.3608,58193.0,58187.0,0.3608]
[1726236788698,0.3608,58193.0,58186.0,0.27]
[1726236788699,0.447706,58201.0,58192.0,0.3608]
[1726236788897,0.447706,58201.0,58186.0,0.6308]
[1726236789107,0.3608,58187.0,58182.0,0.27]
[1726236789305,0.3608,58187.0,58173.0,0.004]
[1726236789306,0.3608,58183.0,58173.0,0.004]
[1726236789602,0.3608,58183.0,58166.0,0.0046]
[1726236789603,0.3608,58174.0,58166.0,0.0046]
[1726236789804,0.3608,58174.0,58150.0,0.27]
[1726236789805,0.6308,58167.0,58150.0,0.27]
[1726236790004,0.6308,58167.0,58157.0,0.3608]
[1726236790005,0.3608,58167.0,58157.0,0.3608]
[1726236790197,0.3608,58167.0,58158.0,0.27]
[1726236790398,0.3274,58175.0,58165.0,0.085957]
[1726236790599,0.3608,58179.0,58168.0,0.3608]
[1726236790807,0.3608,58179.0,58168.0,0.446752]
[1726236791000,0.3608,58179.0,58166.0,0.00088]
[1726236791001,0.3608,58173.0,58166.0,0.00088]
[1726236791196,0.3608,58167.0,58162.0,0.3608]
[1726236791702,0.3608,58167.0,58155.0,0.46088]
[1726236791898,0.3608,58167.0,58147.0,0.3608]
[1726236791899,0.3608,58160.0,58147.0,0.3608]
[1726236792301,0.46,58158.0,58147.0,0.3608]
[1726236792611,0.3608,58160.0,58147.0,0.3608]
[1726236792803,0.3608,58160.0,58150.0,0.085979]
[1726236793010,0.30158634,58167.0,58159.0,0.3608]
[1726236793216,0.545952,58169.0,58159.0,0.3608]
[1726236793217,0.087432,58169.0,58159.0,0.3608]
[1726236793407,0.001,58160.0,58159.0,0.3608]
[1726236793800,0.46,58179.0,58159.0,0.3608]
[1726236794002,0.46,58169.0,58152.0,0.3608]
[1726236794308,0.3608,58170.0,58161.0,0.085963]
[1726236794514,0.46,58174.0,58161.0,0.085963]
[1726236794715,0.3608,58171.0,58161.0,0.085963]
[1726236795308,0.46,58168.0,58162.0,0.3608]
[1726236795511,0.085958,58165.0,58156.0,0.3608]
[1726236795714,0.085958,58165.0,58155.0,0.3608]
[1726236795905,0.085959,58164.0,58155.0,0.3608]
[1726236796109,0.46,58168.0,58155.0,0.3608]
[1726236796417,0.3618,58171.0,58155.0,0.3608]
[1726236796714,0.3608,58158.0,58151.0,0.085978]
[1726236797007,0.446768,58158.0,58151.0,0.085978]
[1726236797408,0.3608,58158.0,58150.0,0.3608]
[1726236797603,0.085975,58154.0,58150.0,0.3608]
[1726236797803,0.3608,58158.0,58150.0,0.3608]
[1726236797804,0.085977,58152.0,58150.0,0.3608]
[1726236798006,0.46,58156.0,58143.0,0.3608]
[1726236798007,0.3608,58151.0,58143.0,0.3608]
[1726236798507,0.085977,58153.0,58143.0,0.3608]
[1726236798712,0.085979,58151.0,58143.0,0.3608]
[1726236798903,0.085972,58151.0,58144.0,0.085986]
[1726236799209,0.00148,58155.0,58149.0,0.085971]
[1726236799514,0.3608,58158.0,58152.0,0.36076]
[1726236800412,0.3608,58158.0,58152.0,0.446728]
[1726236800612,0.82232,58165.0,58152.0,0.446728]
[1726236800613,0.00152,58165.0,58157.0,0.3608]
[1726236800812,0.3608,58171.0,58167.0,0.085945]
[1726236801120,0.3608,58171.0,58162.0,0.3608]
[1726236801309,0.46,58169.0,58162.0,0.3608]
[1726236801709,0.001,58165.0,58162.0,0.3608]
[1726236801902,0.001,58165.0,58164.0,0.08595]
[1726236802312,0.3608,58183.0,58164.0,1.11576]
[1726236802313,0.085925,58182.0,58164.0,1.11576]
[1726236802504,0.46,58185.0,58179.0,0.3608]
[1726236802812,0.3694,58194.0,58179.0,0.3608]
[1726236802813,0.3608,58194.0,58179.0,0.3608]
[1726236803311,0.3608,58194.0,58186.0,0.085918]
[1726236803509,0.085921,58184.0,58179.0,0.3608]
[1726236803702,0.085925,58182.0,58179.0,0.3608]
[1726236803906,0.46,58183.0,58179.0,0.3608]
[1726236804213,0.085927,58180.0,58179.0,0.3608]
[1726236804511,0.085927,58180.0,58171.0,0.08594]
[1726236804512,0.085932,58177.0,58171.0,0.08594]
[1726236804710,0.3608,58181.0,58172.0,0.085938]
[1726236804912,0.08593,58178.0,58169.0,0.3608]
[1726236805116,0.3608,58181.0,58175.0,0.085934]
[1726236805414,0.3608,58181.0,58169.0,0.3608]
[1726236805714,0.085927,58180.0,58174.0,0.085935]
[1726236806011,0.085927,58180.0,58169.0,0.3608]
[1726236806215,0.085927,58180.0,58174.0,0.085935]
[1726236806415,0.46,58178.0,58169.0,0.3608]
[1726236806618,0.46,58178.0,58172.0,0.085938]
[1726236806619,0.085932,58177.0,58172.0,0.085938]
[1726236806918,0.00148,58178.0,58169.0,0.3608]
[1726236807118,0.3618,58181.0,58176.0,0.446731]
[1726236807305,0.001,58181.0,58180.0,0.085927]
[1726236807616,0.46,58189.0,58176.0,0.3608]
[1726236807913,0.085926,58181.0,58176.0,0.3608]
[1726236808115,0.085928,58179.0,58176.0,0.3608]
[1726236808308,0.085931,58177.0,58176.0,0.3608]
[1726236808634,0.46,58179.0,58176.0,0.3608]
[1726236808809,0.00148,58179.0,58178.0,0.08593]
[1726236809010,0.3608,58188.0,58176.0,0.3608]
[1726236809208,0.3608,58188.0,58181.0,0.3608]
[1726236809512,0.3608,58188.0,58187.0,0.085916]
[1726236809713,0.00152,58189.0,58188.0,0.085915]
[1726236810318,0.3608,58202.0,58186.0,0.446717]
[1726236810613,0.085902,58197.0,58196.0,0.3608]
[1726236810811,0.46,58198.0,58190.0,0.3608]
[1726236811116,0.46,58198.0,58194.0,0.085905]
[1726236811314,0.085903,58197.0,58196.0,0.085903]
[1726236811512,0.085903,58197.0,58193.0,0.085907]
[1726236811710,0.46,58198.0,58180.0,0.545927]
[1726236811711,0.3608,58196.0,58180.0,0.545927]
[1726236811907,0.3608,58196.0,58179.0,0.3608]
[1726236811908,0.46,58184.0,58179.0,0.3608]
[1726236812111,0.3608,58191.0,58183.0,0.085922]
[1726236812112,0.27,58186.0,58183.0,0.085922]
[1726236812415,0.27,58186.0,58183.0,0.085921]
[1726236812823,0.27,58186.0,58179.0,0.3608]
[1726236813010,0.3608,58188.0,58180.0,0.085927]
[1726236813011,0.27,58181.0,58180.0,0.085927]
[1726236813210,0.085906,58195.0,58179.0,0.3608]
[1726236813211,0.27,58191.0,58179.0,0.3608]
[1726236813414,0.27,58191.0,58184.0,0.3608]
[1726236813607,0.085912,58190.0,58184.0,0.3608]
[1726236813814,0.085906,58194.0,58189.0,0.085914]
[1726236814120,0.085911,58191.0,58188.0,0.085914]
[1726236814319,0.085919,58185.0,58184.0,0.44672]
[1726236814617,0.085914,58189.0,58186.0,0.085917]
[1726236814819,0.085919,58185.0,58184.0,0.3608]
[1726236815117,0.085922,58184.0,58179.0,0.3608]
[1726236815323,0.085922,58184.0,58181.0,0.085925]
[1726236815512,0.27,58189.0,58179.0,0.3608]
[1726236815708,0.003,58185.0,58179.0,0.3608]
[1726236815905,0.003,58185.0,58184.0,0.446721]
[1726236816319,0.003,58185.0,58184.0,1.648242]
[1726236816519,0.003,58185.0,58184.0,1.734163]
[1726236816712,0.3608,58211.0,58189.0,0.27]
[1726236816713,0.085889,58206.0,58189.0,0.27]
[1726236817022,0.085892,58204.0,58203.0,0.085891]
[1726236817214,0.085895,58202.0,58201.0,0.085896]
[1726236817519,0.27,58208.0,58199.0,0.3608]
[1726236817719,0.085894,58203.0,58200.0,0.085896]
[1726236817920,0.3608,58211.0,58203.0,0.085892]
[1726236818114,0.085887,58208.0,58199.0,0.3608]
[1726236818316,0.085887,58208.0,58207.0,0.085887]
[1726236818622,0.085887,58208.0,58199.0,0.3608]
[1726236818623,0.27,58208.0,58199.0,0.3608]
[1726236818918,0.005,58204.0,58203.0,0.085893]
[1726236819119,0.085894,58203.0,58199.0,0.3608]
[1726236819306,0.005,58204.0,58199.0,0.3608]
[1726236819507,0.27,58208.0,58203.0,0.085893]
[1726236819825,0.085897,58200.0,58199.0,0.3608]
[1726236820423,0.085894,58203.0,58202.0,0.085894]
[1726236820621,0.085894,58203.0,58199.0,0.3608]
[1726236820622,0.009,58208.0,58199.0,0.3608]
[1726236821319,0.545884,58209.0,58199.0,0.446698]
[1726236821520,0.085897,58201.0,58199.0,0.446698]
[1726236821915,0.085897,58200.0,58199.0,0.446698]
[1726236822116,0.085887,58207.0,58200.0,0.085897]
[1726236822317,0.085897,58201.0,58199.0,0.446698]
[1726236822522,0.085887,58207.0,58199.0,0.3608]
[1726236822727,0.46248,58209.0,58199.0,0.3608]
[1726236822914,0.461,58209.0,58205.0,0.3608]
[1726236823111,0.08589,58206.0,58205.0,0.3608]
[1726236823922,0.086884,58209.0,58207.0,0.085886]
[1726236824119,0.085884,58209.0,58208.0,0.085885]
[1726236824423,0.3608,58212.0,58205.0,0.3608]
[1726236824813,0.008,58206.0,58205.0,0.44669]
[1726236825427,0.011,58209.0,58205.0,0.44669]
[1726236825612,0.085888,58206.0,58205.0,0.44669]
[1726236826012,0.093888,58206.0,58205.0,0.44669]
[1726236826221,0.179776,58206.0,58205.0,0.3608]
[1726236826415,0.093888,58206.0,58205.0,0.3608]
[1726236826816,0.008,58206.0,58205.0,0.3608]
[1726236827017,0.093888,58206.0,58205.0,0.3608]
[1726236827217,0.179776,58206.0,58205.0,0.3608]
[1726236827722,0.171776,58206.0,58205.0,0.3608]
[1726236828426,0.179776,58206.0,58205.0,0.3608]
[1726236828625,0.093888,58206.0,58205.0,0.3608]
[1726236828827,0.179776,58206.0,58205.0,0.3608]
[1726236829024,0.171776,58206.0,58205.0,0.3608]
[1726236829222,0.182776,58206.0,58205.0,0.3608]
[1726236829921,0.085899,58199.0,58198.0,0.085899]
[1726236830124,0.085908,58193.0,58187.0,0.3608]
[1726236830324,0.8208,58199.0,58187.0,0.3608]
[1726236830325,0.545915,58188.0,58187.0,0.3608]
[1726236830726,0.63183,58188.0,58187.0,0.3608]
[1726236830912,0.545915,58188.0,58187.0,0.3608]
[1726236831630,0.546915,58188.0,58187.0,0.3608]
[1726236832324,0.001,58188.0,58187.0,0.3608]
[1726236833221,0.001,58188.0,58187.0,0.962276]
[1726236833625,0.001,58188.0,58187.0,1.562276]
[1726236834516,0.001,58188.0,58187.0,1.648192]
[1726236834715,0.001,58188.0,58187.0,1.562276]
[1726236834922,0.001,58188.0,58187.0,0.962276]
[1726236835527,0.001,58188.0,58187.0,0.446716]
[1726236837118,0.001,58188.0,58187.0,1.562276]
[1726236837317,0.001,58188.0,58187.0,0.962276]
[1726236838325,0.4325,58213.0,58205.0,0.08589]
[1726236838524,0.085886,58208.0,58202.0,0.3608]
[1726236838726,0.4325,58213.0,58208.0,0.085885]
[1726236838727,0.446678,58213.0,58208.0,0.085885]
[1726236838925,0.446678,58213.0,58207.0,0.3608]
[1726236839120,0.085873,58217.0,58207.0,0.3608]
[1726236839321,0.085868,58220.0,58212.0,0.3608]
[1726236839523,0.085868,58220.0,58212.0,0.446678]
[1726236839524,0.085869,58220.0,58212.0,0.446678]
[1726236839721,0.085869,58220.0,58215.0,0.085875]
[1726236839923,0.085875,58216.0,58215.0,0.085875]
[1726236840125,0.085878,58213.0,58212.0,0.3608]
[1726236841325,0.085874,58216.0,58215.0,0.085875]
[1726236841534,0.3608,58230.0,58214.0,0.3608]
[1726236841722,0.3608,58230.0,58215.0,0.085874]
[1726236842032,0.27,58227.0,58215.0,0.085874]
[1726236842218,0.085868,58220.0,58215.0,0.085874]
[1726236842424,0.085875,58215.0,58214.0,0.3608]
[1726236842722,0.01,58216.0,58209.0,0.3608]
[1726236842920,0.27,58213.0,58209.0,0.3608]
[1726236843131,0.085877,58214.0,58210.0,0.085882]
[1726236843324,0.08588,58212.0,58210.0,0.085882]
[1726236843523,0.085883,58210.0,58209.0,0.3608]
[1726236844525,0.085899,58199.0,58198.0,0.3608]
[1726236844728,0.085887,58207.0,58202.0,0.085893]
[1726236845031,0.6308,58210.0,58198.0,0.3608]
[1726236845032,0.446683,58210.0,58198.0,0.3608]
[1726236845230,0.3608,58210.0,58209.0,0.085884]
[1726236845529,0.3608,58210.0,58205.0,0.446689]
[1726236845832,0.085885,58209.0,58206.0,0.085888]
[1726236846141,0.085885,58209.0,58207.0,0.085886]
[1726236846329,0.001,58210.0,58209.0,0.085884]
[1726236846916,0.001,58210.0,58209.0,1.562044]
[1726236847119,0.001,58210.0,58209.0,1.647928]
[1726236847327,0.08586,58225.0,58224.0,0.085862]
[1726236847720,0.085862,58224.0,58223.0,0.3608]
[1726236847923,0.11971283,58233.0,58227.0,0.085856]
[1726236848119,0.085854,58229.0,58228.0,0.446656]
[1726236848324,0.08585,58232.0,58231.0,0.08585]
[1726236848733,0.085854,58229.0,58228.0,0.3608]
[1726236849028,0.085844,58237.0,58228.0,0.3608]
[1726236849233,0.014,58233.0,58232.0,0.08585]
[1726236849740,0.27,58241.0,58232.0,0.08585]
[1726236850027,0.085845,58236.0,58232.0,0.08585]
[1726236850339,0.27,58241.0,58233.0,0.3608]
[1726236851024,0.085842,58238.0,58235.0,0.085846]
[1726236851220,0.085835,58243.0,58233.0,0.3608]
[1726236851422,0.3608,58248.0,58239.0,0.3608]
[1726236852121,0.355838,58240.0,58239.0,0.3608]
[1726236852824,0.355838,58240.0,58239.0,0.3618]
[1726236853525,0.369838,58240.0,58239.0,0.3618]
[1726236854032,0.099838,58240.0,58239.0,0.3618]
[1726236855833,1.386634,58240.0,58239.0,0.3618]
[1726236856036,1.386634,58240.0,58233.0,0.3608]
[1726236856037,0.171694,58234.0,58233.0,0.3608]
[1726236856230,0.441694,58234.0,58233.0,0.3608]
[1726236856831,0.085847,58234.0,58233.0,0.3608]
[1726236857133,0.098847,58234.0,58233.0,0.3618]
[1726236858334,0.013,58234.0,58233.0,0.447649]
[1726236860532,0.098847,58234.0,58233.0,0.447649]
[1726236860731,0.368847,58234.0,58233.0,0.27589569]
[1726236860931,0.098847,58234.0,58233.0,0.27589569]
[1726236863137,0.098847,58234.0,58233.0,0.36174469]
[1726236863540,0.013,58234.0,58233.0,0.36174469]
[1726236864445,0.012,58234.0,58233.0,1.72100269]
[1726236864649,0.3608,58248.0,58246.0,0.085828]
[1726236864650,0.085827,58248.0,58246.0,0.085828]
[1726236864940,0.085827,58248.0,58247.0,0.3608]
[1726236865159,0.00914131,58254.0,58247.0,0.3608]
[1726236865335,0.3608,58259.0,58248.0,0.27]
[1726236865336,0.12911689,58253.0,58248.0,0.27]
[1726236865643,0.085826,58248.0,58247.0,0.3608]
[1726236865846,0.27,58257.0,58251.0,0.085821]
[1726236866052,0.085819,58253.0,58252.0,0.3608]
[1726236866546,0.085819,58253.0,58252.0,0.446621]
[1726236866943,0.085819,58253.0,58252.0,0.3608]
[1726236867349,0.086819,58253.0,58252.0,0.3618]
[1726236867652,0.803438,58253.0,58252.0,0.001]
[1726236867840,0.803438,58253.0,58247.0,0.3608]
[1726236867841,0.171652,58248.0,58247.0,0.3608]
[1726236868037,0.441652,58248.0,58247.0,0.3608]
[1726236868548,0.085826,58248.0,58247.0,0.3608]
[1726236868752,0.171652,58248.0,58247.0,0.3608]
[1726236868940,0.085826,58248.0,58247.0,0.3608]
[1726236869351,0.446626,58248.0,58234.0,0.3608]
[1726236869653,0.446626,58248.0,58238.0,0.08584]
[1726236869844,0.085834,58244.0,58239.0,0.3608]
[1726236870047,0.085834,58244.0,58241.0,0.085836]
[1726236870345,0.004,58248.0,58247.0,0.085828]
[1726236870551,0.004,58248.0,58247.0,0.446628]
[1726236871248,0.085825,58249.0,58248.0,0.085826]
[1726236871547,0.08582,58253.0,58251.0,0.085822]
[1726236871948,0.08582,58253.0,58252.0,0.085821]
[1726236872346,0.085826,58248.0,58247.0,0.3608]
[1726236872542,0.085826,58248.0,58247.0,0.446628]
[1726236873547,0.087826,58248.0,58247.0,0.447628]
[1726236873847,0.002,58248.0,58247.0,0.447628]
[1726236875655,0.173652,58248.0,58247.0,0.3618]
[1726236875844,0.173652,58248.0,58241.0,0.3608]
[1726236875845,1.049492,58248.0,58241.0,0.3608]
[1726236876044,1.049492,58248.0,58230.0,0.3608]
[1726236876045,0.085852,58231.0,58230.0,0.3608]
[1726236876357,0.085852,58231.0,58230.0,0.446653]
[1726236877252,0.27,58242.0,58230.0,0.3608]
[1726236877641,0.085844,58236.0,58230.0,0.3618]
[1726236877954,0.27,58242.0,58230.0,0.3618]
[1726236878455,0.08585,58233.0,58230.0,0.447653]
[1726236878749,0.27,58242.0,58234.0,0.085846]
[1726236878953,0.27,58242.0,58230.0,0.3608]
[1726236879254,0.27,58242.0,58233.0,0.085848]
[1726236879255,0.085844,58236.0,58233.0,0.085848]
[1726236879453,0.085844,58236.0,58234.0,0.085847]
[1726236880150,0.085844,58236.0,58235.0,0.085846]
[1726236881059,0.085839,58240.0,58231.0,0.085851]
[1726236881252,0.085837,58241.0,58230.0,0.3608]
[1726236881454,0.085845,58236.0,58234.0,0.085847]
[1726236881658,0.085845,58236.0,58235.0,0.085846]
[1726236881860,0.275,58242.0,58230.0,0.3618]
[1726236882153,0.275,58242.0,58230.0,0.3608]
[1726236882154,0.085852,58231.0,58230.0,0.3608]
[1726236882354,0.084852,58231.0,58230.0,0.446653]
[1726236883957,0.083852,58231.0,58230.0,0.446653]
[1726236884458,0.089852,58231.0,58230.0,0.447653]
[1726236884961,0.006,58231.0,58230.0,0.533506]
[1726236885261,0.006,58231.0,58230.0,0.447653]
[1726236885458,0.006,58231.0,58230.0,0.533506]
[1726236886660,0.006,58231.0,58230.0,1.648706]
[1726236886851,0.006,58231.0,58230.0,1.74409658]
[1726236887052,0.005,58231.0,58230.0,1.74409658]
[1726236887566,0.005,58231.0,58230.0,1.65824358]
[1726236887860,0.085826,58249.0,58231.0,0.085851]
[1726236888055,0.085827,58248.0,58247.0,0.3608]
[1726236890859,0.086827,58248.0,58247.0,0.3618]
[1726236892258,0.172654,58248.0,58247.0,0.3618]
[1726236892463,0.172653,58248.0,58247.0,0.3618]
[1726236892662,0.442652,58248.0,58247.0,0.3618]
[1726236893459,0.086826,58248.0,58247.0,0.3618]
[1726236894961,0.086826,58248.0,58247.0,0.447628]
[1726236895658,0.086826,58248.0,58247.0,0.3618]
[1726236896463,0.001,58248.0,58247.0,0.447628]
[1726236896668,0.001,58248.0,58247.0,0.54299181]
[1726236896965,0.001,58248.0,58247.0,0.45716381]
[1726236897356,0.001,58248.0,58247.0,0.54299181]
[1726236897555,0.001,58248.0,58247.0,0.45716381]
[1726236898263,0.085818,58254.0,58253.0,0.085819]
[1726236898562,0.085818,58254.0,58253.0,0.446619]
[1726236899352,0.085818,58254.0,58253.0,0.447619]
[1726236899759,0.09534327,58257.0,58256.0,0.085815]
[1726236900663,0.085809,58260.0,58259.0,0.08581]
[1726236900872,0.12982787,58260.0,58259.0,0.44661]